[Event "*** Titled Tuesday Blitz"]
[Site "Chess.com"]
[Date "2020.05.26"]
[Round "6"]
[White "Mbneu"]
[Black "Malysch"]
[Result "0-1"]
[WhiteElo "2227"]
[BlackElo "2457"]
[TimeControl "180+1"]
[EndTime "11:08:28 PDT"]
[Termination "Malysch won by resignation"]

1. d4 {[%clk 0:03:00.9]} 1... Nf6 {[%clk 0:02:56.9]} 2. c4 {[%clk 0:03:00.2]}
2... g6 {[%clk 0:02:56.1]} 3. Nc3 {[%clk 0:02:59.9]} 3... d5 {[%clk 0:02:55.4]}
4. cxd5 {[%clk 0:03:00.8]} 4... Nxd5 {[%clk 0:02:55.1]} 5. g3 {[%clk 0:03:01.1]}
5... Bg7 {[%clk 0:02:53]} 6. Bg2 {[%clk 0:03:00.9]} 6... Nxc3 {[%clk 0:02:52.4]}
7. bxc3 {[%clk 0:03:00.2]} 7... c5 {[%clk 0:02:52.9]} 8. e3 {[%clk 0:03:00.1]}
8... Qa5 {[%clk 0:02:47.3]} 9. Bd2 {[%clk 0:02:56.9]} 9... O-O {[%clk
0:02:40.5]} 10. Ne2 {[%clk 0:02:55.7]} 10... Nc6 {[%clk 0:02:36]} 11. O-O {[%clk
0:02:52]} 11... Bg4 {[%clk 0:02:24.6]} 12. h3 {[%clk 0:02:49.4]} 12... Bxe2
{[%clk 0:01:59.1]} 13. Qxe2 {[%clk 0:02:50.3]} 13... Rac8 {[%clk 0:01:56.6]} 14.
Rfb1 {[%clk 0:02:45]} 14... b6 {[%clk 0:01:46]} 15. Qb5 {[%clk 0:02:33.7]} 15...
Qxb5 {[%clk 0:01:40.2]} 16. Rxb5 {[%clk 0:02:33.6]} 16... Na5 {[%clk 0:01:39.5]}
17. Bf1 {[%clk 0:02:17.4]} 17... cxd4 {[%clk 0:01:21.6]} 18. cxd4 {[%clk
0:02:14.9]} 18... Nc4 {[%clk 0:01:21.5]} 19. Bb4 {[%clk 0:02:01.5]} 19... Nd6
{[%clk 0:01:17]} 20. Bxd6 {[%clk 0:01:54.6]} 20... exd6 {[%clk 0:01:17.9]} 21.
a4 {[%clk 0:01:54.7]} 21... Bf6 {[%clk 0:00:33.1]} 22. a5 {[%clk 0:01:34.6]}
22... Bd8 {[%clk 0:00:30.2]} 23. Rd5 {[%clk 0:01:34]} 23... bxa5 {[%clk
0:00:20.4]} 24. Rxd6 {[%clk 0:01:28.8]} 24... Bb6 {[%clk 0:00:20.8]} 25. h4
{[%clk 0:01:18.8]} 25... Rc2 {[%clk 0:00:20.5]} 26. Bh3 {[%clk 0:01:12.9]} 26...
h5 {[%clk 0:00:12.9]} 27. Ra4 {[%clk 0:01:05.8]} 27... Rd2 {[%clk 0:00:11.3]}
28. Rd7 {[%clk 0:01:03.6]} 28... Rd8 {[%clk 0:00:10.9]} 29. Kg2 {[%clk
0:01:00.4]} 29... Rxd7 {[%clk 0:00:10.5]} 30. Bxd7 {[%clk 0:01:00.3]} 30... Rb2
{[%clk 0:00:10.4]} 31. Rc4 {[%clk 0:00:59.7]} 31... Kf8 {[%clk 0:00:09.4]} 32.
Rc8+ {[%clk 0:00:58.6]} 32... Ke7 {[%clk 0:00:08.9]} 33. Ba4 {[%clk 0:00:56.4]}
33... Rb4 {[%clk 0:00:08.3]} 34. Re8+ {[%clk 0:00:53.8]} 34... Kd6 {[%clk
0:00:07.4]} 35. Bd1 {[%clk 0:00:47.1]} 35... a4 {[%clk 0:00:07.5]} 36. Rc8
{[%clk 0:00:43.7]} 36... a3 {[%clk 0:00:07.5]} 37. Rc2 {[%clk 0:00:42.1]} 37...
Rb2 {[%clk 0:00:07.4]} 38. Rxb2 {[%clk 0:00:41.6]} 38... axb2 {[%clk 0:00:08.3]}
39. Bc2 {[%clk 0:00:41.9]} 39... a5 {[%clk 0:00:08.2]} 40. Kf3 {[%clk
0:00:40.1]} 40... Kd5 {[%clk 0:00:07.2]} 41. Bb3+ {[%clk 0:00:38]} 41... Kc6
{[%clk 0:00:07]} 42. Ba2 {[%clk 0:00:37.3]} 42... Kb5 {[%clk 0:00:07.3]} 43. Ke2
{[%clk 0:00:37.9]} 43... Kb4 {[%clk 0:00:07.2]} 44. Kd2 {[%clk 0:00:38.2]} 44...
f6 {[%clk 0:00:02.8]} 45. Kc2 {[%clk 0:00:37.7]} 45... Ka3 {[%clk 0:00:01.7]}
46. Kb1 {[%clk 0:00:37.6]} 46... g5 {[%clk 0:00:02.6]} 47. hxg5 {[%clk
0:00:36.4]} 47... fxg5 {[%clk 0:00:03.5]} 48. Be6 {[%clk 0:00:34.4]} 48... h4
{[%clk 0:00:03.7]} 49. gxh4 {[%clk 0:00:34.3]} 49... gxh4 {[%clk 0:00:04.6]} 50.
f4 {[%clk 0:00:34.6]} 50... a4 {[%clk 0:00:04.7]} 51. Bg4 {[%clk 0:00:33]} 51...
Bd8 {[%clk 0:00:04.3]} 52. f5 {[%clk 0:00:32.7]} 52... Kb3 {[%clk 0:00:03.6]}
53. Bd1+ {[%clk 0:00:31.3]} 53... Kc3 {[%clk 0:00:02.6]} 54. Bf3 {[%clk
0:00:30.5]} 54... a3 {[%clk 0:00:02.2]} 55. d5 {[%clk 0:00:29]} 55... h3 {[%clk
0:00:02.5]} 56. d6 {[%clk 0:00:27.9]} 56... h2 {[%clk 0:00:02.8]} 57. e4 {[%clk
0:00:26.8]} 57... a2+ {[%clk 0:00:02.6]} 58. Kxa2 {[%clk 0:00:26.4]} 58... Kc2
{[%clk 0:00:03.5]} 59. e5 {[%clk 0:00:25.6]} 59... b1=Q+ {[%clk 0:00:04.4]} 0-1

[Event "*** Titled Tuesday Blitz"]
[Site "Chess.com"]
[Date "2020.05.26"]
[Round "6"]
[White "narutosmith"]
[Black "rugbyclub"]
[Result "0-1"]
[WhiteElo "2258"]
[BlackElo "2107"]
[TimeControl "180+1"]
[EndTime "11:08:28 PDT"]
[Termination "rugbyclub won on time"]

1. c4 {[%clk 0:03:00.9]} 1... e5 {[%clk 0:02:58.8]} 2. Nc3 {[%clk 0:03:01.1]}
2... Bb4 {[%clk 0:02:57.7]} 3. Nd5 {[%clk 0:03:00.5]} 3... Bc5 {[%clk
0:02:55.3]} 4. Nf3 {[%clk 0:02:59.7]} 4... Nc6 {[%clk 0:02:53.2]} 5. e3 {[%clk
0:02:58.7]} 5... a6 {[%clk 0:02:49.6]} 6. d4 {[%clk 0:02:58.1]} 6... Ba7 {[%clk
0:02:45.6]} 7. dxe5 {[%clk 0:02:57.2]} 7... Nge7 {[%clk 0:02:45]} 8. Bd3 {[%clk
0:02:45]} 8... Ng6 {[%clk 0:02:42.7]} 9. Bxg6 {[%clk 0:02:33.5]} 9... hxg6
{[%clk 0:02:41.9]} 10. O-O {[%clk 0:02:34.2]} 10... d6 {[%clk 0:02:36.6]} 11.
exd6 {[%clk 0:02:22]} 11... Qxd6 {[%clk 0:02:35.2]} 12. e4 {[%clk 0:02:18.9]}
12... Bg4 {[%clk 0:02:32.2]} 13. Bf4 {[%clk 0:02:15.4]} 13... Bxf3 {[%clk
0:02:11.8]} 14. Bxd6 {[%clk 0:02:02.9]} 14... Bxd1 {[%clk 0:02:10.1]} 15. Nxc7+
{[%clk 0:02:02.9]} 15... Kd7 {[%clk 0:02:09.1]} 16. Nxa8 {[%clk 0:02:02.3]}
16... Kxd6 {[%clk 0:02:05.5]} 17. Rfxd1+ {[%clk 0:02:01.7]} 17... Nd4 {[%clk
0:01:53.3]} 18. c5+ {[%clk 0:01:55.8]} 18... Bxc5 {[%clk 0:01:51.6]} 19. e5+
{[%clk 0:01:22.5]} 19... Kxe5 {[%clk 0:00:40]} 20. Rac1 {[%clk 0:01:04.9]} 20...
Ne2+ {[%clk 0:00:38.3]} 21. Kf1 {[%clk 0:01:05.1]} 21... Nxc1 {[%clk 0:00:37.9]}
22. Rxc1 {[%clk 0:01:05.7]} 22... Bd4 {[%clk 0:00:33.9]} 23. Nc7 {[%clk
0:00:59.3]} 23... Rc8 {[%clk 0:00:32.8]} 24. f4+ {[%clk 0:00:57.6]} 24... Ke4
{[%clk 0:00:28]} 25. Re1+ {[%clk 0:00:41.5]} 25... Kd3 {[%clk 0:00:27.8]} 26.
Nd5 {[%clk 0:00:32.6]} 26... Bxb2 {[%clk 0:00:18.5]} 27. g3 {[%clk 0:00:29.1]}
27... Bd4 {[%clk 0:00:14.7]} 28. Re7 {[%clk 0:00:25.5]} 28... b5 {[%clk
0:00:12.5]} 29. Rxf7 {[%clk 0:00:23.7]} 29... Rc1+ {[%clk 0:00:11.6]} 30. Kg2
{[%clk 0:00:23.7]} 30... Rc2+ {[%clk 0:00:12.2]} 31. Kh3 {[%clk 0:00:23.2]}
31... Kd2 {[%clk 0:00:09.9]} 32. a3 {[%clk 0:00:21.8]} 32... a5 {[%clk
0:00:07.9]} 33. Rb7 {[%clk 0:00:21.4]} 33... Rc5 {[%clk 0:00:07.5]} 34. Ne7
{[%clk 0:00:20.5]} 34... Bb2 {[%clk 0:00:06.7]} 35. Nxg6 {[%clk 0:00:18.4]}
35... Bxa3 {[%clk 0:00:07.3]} 36. Ne5 {[%clk 0:00:17.5]} 36... b4 {[%clk
0:00:06.6]} 37. Rd7+ {[%clk 0:00:15.4]} 37... Ke3 {[%clk 0:00:04.3]} 38. Rd3+
{[%clk 0:00:14.2]} 38... Ke2 {[%clk 0:00:04.4]} 39. Rd7 {[%clk 0:00:13.1]} 39...
b3 {[%clk 0:00:03.6]} 40. Rb7 {[%clk 0:00:12.5]} 40... Bb4 {[%clk 0:00:03]} 41.
Rd7 {[%clk 0:00:08.9]} 41... b2 {[%clk 0:00:03.1]} 42. Re7 {[%clk 0:00:05.4]}
42... b1=Q {[%clk 0:00:02.1]} 43. Nd7+ {[%clk 0:00:05.3]} 43... Kf1 {[%clk
0:00:01.6]} 44. Nxc5 {[%clk 0:00:05.3]} 44... Qh7+ {[%clk 0:00:01.4]} 45. Kg4
{[%clk 0:00:04.5]} 45... Bxc5 {[%clk 0:00:02.1]} 46. Re5 {[%clk 0:00:03.6]}
46... Qc2 {[%clk 0:00:01.5]} 47. Re6 {[%clk 0:00:02.1]} 47... a4 {[%clk
0:00:01.8]} 48. Re5 {[%clk 0:00:02]} 48... a3 {[%clk 0:00:02.4]} 49. Kf3 {[%clk
0:00:01.9]} 49... a2 {[%clk 0:00:03]} 0-1

[Event "*** Titled Tuesday Blitz"]
[Site "Chess.com"]
[Date "2020.05.26"]
[Round "6"]
[White "GeorgMeier"]
[Black "Azeryahu"]
[Result "1/2-1/2"]
[WhiteElo "2980"]
[BlackElo "2771"]
[TimeControl "180+1"]
[EndTime "11:08:32 PDT"]
[Termination "Game drawn by repetition"]

1. Nf3 {[%clk 0:03:00.9]} 1... Nf6 {[%clk 0:03:00.2]} 2. g3 {[%clk 0:03:00.3]}
2... b6 {[%clk 0:03:00.7]} 3. Bg2 {[%clk 0:03:00.5]} 3... Bb7 {[%clk 0:03:01.3]}
4. c4 {[%clk 0:03:00]} 4... e6 {[%clk 0:03:01]} 5. O-O {[%clk 0:02:59.1]} 5...
Be7 {[%clk 0:03:01.3]} 6. b3 {[%clk 0:02:58.5]} 6... O-O {[%clk 0:03:00.5]} 7.
Bb2 {[%clk 0:02:59]} 7... c5 {[%clk 0:02:47.8]} 8. Nc3 {[%clk 0:02:58.3]} 8...
d5 {[%clk 0:02:34.9]} 9. d4 {[%clk 0:02:59.2]} 9... dxc4 {[%clk 0:02:14.1]} 10.
dxc5 {[%clk 0:03:00.1]} 10... Bxc5 {[%clk 0:02:07.2]} 11. bxc4 {[%clk 0:02:19]}
11... Qxd1 {[%clk 0:01:59.9]} 12. Rfxd1 {[%clk 0:02:18.6]} 12... Nc6 {[%clk
0:01:49.3]} 13. Na4 {[%clk 0:02:13.4]} 13... Be7 {[%clk 0:01:42.3]} 14. Ne5
{[%clk 0:02:10.6]} 14... Rac8 {[%clk 0:01:38.3]} 15. Nd7 {[%clk 0:01:39.9]}
15... Rfd8 {[%clk 0:01:34.1]} 16. Nxf6+ {[%clk 0:01:39.4]} 16... Bxf6 {[%clk
0:01:30.7]} 17. Bxf6 {[%clk 0:01:38.8]} 17... gxf6 {[%clk 0:01:31.4]} 18. c5
{[%clk 0:01:39.1]} 18... Rxd1+ {[%clk 0:00:55.5]} 19. Rxd1 {[%clk 0:01:38.5]}
19... bxc5 {[%clk 0:00:56.4]} 20. Nxc5 {[%clk 0:01:36.3]} 20... Ba8 {[%clk
0:00:56.7]} 21. Nd7 {[%clk 0:01:01.6]} 21... Kg7 {[%clk 0:00:55.1]} 22. Rc1
{[%clk 0:01:01.7]} 22... Rd8 {[%clk 0:00:42.9]} 23. Bxc6 {[%clk 0:00:58.4]}
23... Bxc6 {[%clk 0:00:40]} 24. Nxf6 {[%clk 0:00:46.7]} 24... Kxf6 {[%clk
0:00:24]} 25. Rxc6 {[%clk 0:00:46]} 25... Rd2 {[%clk 0:00:24.6]} 26. Ra6 {[%clk
0:00:45.5]} 26... Rxe2 {[%clk 0:00:24.8]} 27. Rxa7 {[%clk 0:00:44.4]} 27... h5
{[%clk 0:00:19.9]} 28. Kg2 {[%clk 0:00:38.2]} 28... Kg6 {[%clk 0:00:16.6]} 29.
Ra5 {[%clk 0:00:33.6]} 29... f6 {[%clk 0:00:16.1]} 30. Kf3 {[%clk 0:00:30.1]}
30... Rb2 {[%clk 0:00:16]} 31. Ke3 {[%clk 0:00:28.9]} 31... e5 {[%clk 0:00:16]}
32. h3 {[%clk 0:00:28.7]} 32... Kf5 {[%clk 0:00:15.5]} 33. Ra4 {[%clk
0:00:24.5]} 33... Rc2 {[%clk 0:00:14.2]} 34. Ra8 {[%clk 0:00:11.2]} 34... Rc3+
{[%clk 0:00:13]} 35. Kd2 {[%clk 0:00:11.5]} 35... Rf3 {[%clk 0:00:13.1]} 36. Ke2
{[%clk 0:00:11.7]} 36... Rc3 {[%clk 0:00:13.6]} 37. Ra4 {[%clk 0:00:09.2]} 37...
Rc2+ {[%clk 0:00:11.9]} 38. Kf3 {[%clk 0:00:09.6]} 38... Rc3+ {[%clk 0:00:12]}
39. Kg2 {[%clk 0:00:10]} 39... Kg6 {[%clk 0:00:11.6]} 40. Ra5 {[%clk 0:00:09.7]}
40... Kf5 {[%clk 0:00:11]} 41. Ra6 {[%clk 0:00:09.7]} 41... Rc2 {[%clk 0:00:09]}
42. Ra8 {[%clk 0:00:08.5]} 42... Rb2 {[%clk 0:00:08.5]} 43. a4 {[%clk
0:00:08.3]} 43... Ra2 {[%clk 0:00:08.3]} 44. Kf3 {[%clk 0:00:07.6]} 44... Ra3+
{[%clk 0:00:08.1]} 45. Kg2 {[%clk 0:00:08]} 45... Ra2 {[%clk 0:00:08.4]} 46. Ra7
{[%clk 0:00:08.4]} 46... e4 {[%clk 0:00:08]} 47. Ra5+ {[%clk 0:00:08.2]} 47...
Kg6 {[%clk 0:00:08.3]} 48. Kf1 {[%clk 0:00:08.4]} 48... f5 {[%clk 0:00:06]} 49.
h4 {[%clk 0:00:08]} 49... Kf6 {[%clk 0:00:05.2]} 50. Ra8 {[%clk 0:00:04.2]}
50... Ra1+ {[%clk 0:00:04.5]} 51. Ke2 {[%clk 0:00:03.7]} 51... Ra2+ {[%clk
0:00:04.7]} 52. Kf1 {[%clk 0:00:04.1]} 52... Ra1+ {[%clk 0:00:04.6]} 53. Kg2
{[%clk 0:00:04.4]} 53... Ra2 {[%clk 0:00:05.1]} 54. Kf1 {[%clk 0:00:03.5]}
1/2-1/2

[Event "*** Titled Tuesday Blitz"]
[Site "Chess.com"]
[Date "2020.05.26"]
[Round "6"]
[White "GoltsevDmitry2000"]
[Black "GM_dmitrij"]
[Result "0-1"]
[WhiteElo "2687"]
[BlackElo "2931"]
[TimeControl "180+1"]
[EndTime "11:08:32 PDT"]
[Termination "GM_dmitrij won on time"]

1. e4 {[%clk 0:03:00.1]} 1... e5 {[%clk 0:03:00.1]} 2. Nf3 {[%clk 0:02:55.2]}
2... Nc6 {[%clk 0:03:00.4]} 3. Bb5 {[%clk 0:02:55.6]} 3... a6 {[%clk 0:03:00.5]}
4. Ba4 {[%clk 0:02:55.8]} 4... Nf6 {[%clk 0:03:01]} 5. O-O {[%clk 0:02:55.6]}
5... Bc5 {[%clk 0:03:01.5]} 6. Nxe5 {[%clk 0:02:52.7]} 6... Nxe5 {[%clk
0:03:00.6]} 7. d4 {[%clk 0:02:53]} 7... b5 {[%clk 0:03:01.5]} 8. Bb3 {[%clk
0:02:46.7]} 8... Bxd4 {[%clk 0:03:01.2]} 9. Qxd4 {[%clk 0:02:47.6]} 9... d6
{[%clk 0:03:02.1]} 10. c3 {[%clk 0:02:41.3]} 10... O-O {[%clk 0:02:53.8]} 11.
Bg5 {[%clk 0:02:33.9]} 11... Bb7 {[%clk 0:02:53.4]} 12. Nd2 {[%clk 0:02:20.3]}
12... h6 {[%clk 0:02:49.2]} 13. Bxf6 {[%clk 0:02:16.7]} 13... Qxf6 {[%clk
0:02:47]} 14. f4 {[%clk 0:02:16.8]} 14... c5 {[%clk 0:02:46.8]} 15. Qe3 {[%clk
0:02:00.4]} 15... Ng6 {[%clk 0:02:46.6]} 16. a4 {[%clk 0:01:52.8]} 16... Rfe8
{[%clk 0:02:39.4]} 17. Bc2 {[%clk 0:01:43.8]} 17... b4 {[%clk 0:02:23.4]} 18.
Rae1 {[%clk 0:01:05.2]} 18... a5 {[%clk 0:02:16.7]} 19. Nc4 {[%clk 0:00:53.9]}
19... Ba6 {[%clk 0:01:58.8]} 20. Bd3 {[%clk 0:00:39.9]} 20... bxc3 {[%clk
0:01:47]} 21. bxc3 {[%clk 0:00:32.9]} 21... Qxc3 {[%clk 0:01:47.9]} 22. Rc1
{[%clk 0:00:32.3]} 22... Qf6 {[%clk 0:01:44.8]} 23. Nb6 {[%clk 0:00:27.4]} 23...
Bxd3 {[%clk 0:01:40.4]} 24. Qxd3 {[%clk 0:00:28.3]} 24... Ra7 {[%clk 0:01:06.3]}
25. Nd5 {[%clk 0:00:27.4]} 25... Qd4+ {[%clk 0:01:06.5]} 26. Qxd4 {[%clk
0:00:26.8]} 26... cxd4 {[%clk 0:01:07.4]} 27. Rfe1 {[%clk 0:00:26.3]} 27... Ne7
{[%clk 0:00:57.5]} 28. Nc7 {[%clk 0:00:13.9]} 28... Rd8 {[%clk 0:00:45.8]} 29.
Nb5 {[%clk 0:00:13.8]} 29... Rb7 {[%clk 0:00:46.5]} 30. Red1 {[%clk 0:00:13.4]}
30... d5 {[%clk 0:00:38.4]} 31. Rxd4 {[%clk 0:00:13.1]} 31... f6 {[%clk
0:00:38.8]} 32. Rcd1 {[%clk 0:00:13]} 32... Rbd7 {[%clk 0:00:38.1]} 33. Nc3
{[%clk 0:00:10.9]} 33... Kf7 {[%clk 0:00:35.7]} 34. Nxd5 {[%clk 0:00:11.1]}
34... f5 {[%clk 0:00:32.3]} 35. Kf2 {[%clk 0:00:03.9]} 35... fxe4 {[%clk
0:00:32.3]} 36. Nxe7 {[%clk 0:00:03.5]} 36... Rxd4 {[%clk 0:00:31.7]} 37. Rxd4
{[%clk 0:00:02.7]} 37... Rxd4 {[%clk 0:00:32.6]} 38. Nf5 {[%clk 0:00:03.2]}
38... Rxa4 {[%clk 0:00:31.7]} 39. Ke3 {[%clk 0:00:03.8]} 39... Ra1 {[%clk
0:00:29.3]} 40. Kxe4 {[%clk 0:00:04]} 40... a4 {[%clk 0:00:29.8]} 41. Kd3 {[%clk
0:00:04.5]} 41... Rb1 {[%clk 0:00:26.7]} 42. Kc2 {[%clk 0:00:04.7]} 42... Rb8
{[%clk 0:00:26.4]} 43. Nd6+ {[%clk 0:00:04.6]} 43... Ke6 {[%clk 0:00:25.8]} 44.
Nc4 {[%clk 0:00:05.5]} 44... Kd5 {[%clk 0:00:24.6]} 45. Na3 {[%clk 0:00:03.3]}
45... Kd4 {[%clk 0:00:22.7]} 46. g3 {[%clk 0:00:03.3]} 46... Ke3 {[%clk
0:00:22.4]} 47. Nc4+ {[%clk 0:00:03]} 47... Kf2 {[%clk 0:00:21.6]} 48. Ne5
{[%clk 0:00:02.3]} 48... a3 {[%clk 0:00:20.6]} 49. Nd7 {[%clk 0:00:01.6]} 49...
Rb5 {[%clk 0:00:19.2]} 0-1

[Event "*** Titled Tuesday Blitz"]
[Site "Chess.com"]
[Date "2020.05.26"]
[Round "6"]
[White "Sibelephant"]
[Black "Man-Chuk"]
[Result "1-0"]
[WhiteElo "3170"]
[BlackElo "2770"]
[TimeControl "180+1"]
[EndTime "11:08:33 PDT"]
[Termination "Sibelephant won by resignation"]

1. c4 {[%clk 0:03:00.2]} 1... Nf6 {[%clk 0:02:54.7]} 2. Nc3 {[%clk 0:03:00.5]}
2... e5 {[%clk 0:02:54.2]} 3. Nf3 {[%clk 0:03:00.6]} 3... Nc6 {[%clk 0:02:54.2]}
4. d3 {[%clk 0:03:01.2]} 4... Bb4 {[%clk 0:02:44.1]} 5. Bd2 {[%clk 0:03:01.2]}
5... O-O {[%clk 0:02:37.4]} 6. g3 {[%clk 0:03:01.5]} 6... Re8 {[%clk 0:02:35.2]}
7. Bg2 {[%clk 0:03:01.8]} 7... Bxc3 {[%clk 0:02:32]} 8. Bxc3 {[%clk 0:03:02.1]}
8... d5 {[%clk 0:02:32.5]} 9. cxd5 {[%clk 0:03:02.7]} 9... Nxd5 {[%clk
0:02:33.4]} 10. O-O {[%clk 0:03:02.2]} 10... f6 {[%clk 0:02:26.8]} 11. Qb3
{[%clk 0:02:56.9]} 11... Kh8 {[%clk 0:01:56.7]} 12. Nxe5 {[%clk 0:02:52.1]}
12... Be6 {[%clk 0:01:26]} 13. Nxc6 {[%clk 0:02:50.2]} 13... bxc6 {[%clk
0:01:24.9]} 14. Qc2 {[%clk 0:02:43.7]} 14... Qd7 {[%clk 0:01:23.9]} 15. Rfe1
{[%clk 0:02:35.3]} 15... Bh3 {[%clk 0:01:23.3]} 16. Bd2 {[%clk 0:02:19.9]} 16...
Bxg2 {[%clk 0:01:20]} 17. Kxg2 {[%clk 0:02:20.4]} 17... Rab8 {[%clk 0:01:16.4]}
18. b3 {[%clk 0:02:07.9]} 18... h5 {[%clk 0:01:14.7]} 19. e4 {[%clk 0:02:04.7]}
19... Ne7 {[%clk 0:01:12.9]} 20. Be3 {[%clk 0:01:52.2]} 20... h4 {[%clk
0:01:12.3]} 21. Qe2 {[%clk 0:01:40.6]} 21... h3+ {[%clk 0:01:09.1]} 22. Kg1
{[%clk 0:01:41]} 22... a5 {[%clk 0:01:07]} 23. Rac1 {[%clk 0:01:34.5]} 23... Rb5
{[%clk 0:01:03.9]} 24. Bc5 {[%clk 0:01:32.1]} 24... Kg8 {[%clk 0:00:55.1]} 25.
d4 {[%clk 0:01:27.5]} 25... Qe6 {[%clk 0:00:43.2]} 26. Qc4 {[%clk 0:01:18.7]}
26... Qxc4 {[%clk 0:00:43.3]} 27. Rxc4 {[%clk 0:01:18.5]} 27... Nd5 {[%clk
0:00:37.3]} 28. f3 {[%clk 0:01:15.6]} 28... Nb4 {[%clk 0:00:26.9]} 29. Bxb4
{[%clk 0:01:14.8]} 29... Rxb4 {[%clk 0:00:27.1]} 30. Rxb4 {[%clk 0:01:01.2]}
30... axb4 {[%clk 0:00:28]} 31. Kf2 {[%clk 0:01:01.7]} 31... Ra8 {[%clk
0:00:20]} 32. Re2 {[%clk 0:01:01.8]} 32... Kf7 {[%clk 0:00:20.3]} 33. Rc2 {[%clk
0:01:01.9]} 33... Ke7 {[%clk 0:00:19.6]} 34. g4 {[%clk 0:01:00.8]} 34... Rd8
{[%clk 0:00:06.8]} 35. Rxc6 {[%clk 0:00:55]} 35... Rxd4 {[%clk 0:00:06.7]} 36.
Rxc7+ {[%clk 0:00:55.3]} 36... Ke6 {[%clk 0:00:06.2]} 37. Ke2 {[%clk 0:00:53.4]}
37... Rd8 {[%clk 0:00:02.5]} 38. Rc6+ {[%clk 0:00:33.3]} 38... Ke5 {[%clk
0:00:02.6]} 39. Rc5+ {[%clk 0:00:25.7]} 39... Ke6 {[%clk 0:00:02.8]} 40. f4
{[%clk 0:00:24.9]} 40... Ra8 {[%clk 0:00:02.7]} 41. Rc2 {[%clk 0:00:24.3]} 41...
g5 {[%clk 0:00:02.3]} 42. Ke3 {[%clk 0:00:23.1]} 42... gxf4+ {[%clk 0:00:02.5]}
43. Kxf4 {[%clk 0:00:23.6]} 43... Ra5 {[%clk 0:00:03.2]} 44. Rd2 {[%clk
0:00:18.3]} 44... Ra8 {[%clk 0:00:02.6]} 45. Rf2 {[%clk 0:00:17.8]} 45... Ra5
{[%clk 0:00:02.1]} 46. Kg3 {[%clk 0:00:18]} 46... Re5 {[%clk 0:00:02.1]} 47. Re2
{[%clk 0:00:17.1]} 47... Rc5 {[%clk 0:00:02.3]} 48. Kxh3 {[%clk 0:00:17.2]}
48... Rc3+ {[%clk 0:00:02.9]} 49. Kh4 {[%clk 0:00:16.7]} 49... Ke5 {[%clk
0:00:03.8]} 50. Rf2 {[%clk 0:00:15.8]} 50... Rd3 {[%clk 0:00:03.3]} 51. h3
{[%clk 0:00:13]} 51... Rc3 {[%clk 0:00:02.6]} 52. Rf5+ {[%clk 0:00:12.5]} 1-0